[Event "GER-chT States Women 2022"]
[Site "Braunfels"]
[Date "2022.06.19"]
[Round "5.6"]
[White "Hess, Olena"]
[Black "Lowke, Kathrin"]
[Result "1-0"]
[ECO "E91"]
[WhiteElo "2055"]
[BlackElo "1850"]
[Annotator "TA"]
[PlyCount "79"]
[EventDate "2022.06.15"]
[EventType "swiss"]
[EventCountry "GER"]
[SourceTitle "playchess.com"]
[Source "ChessBase"]
[SourceQuality "1"]
[TimeControl "40/5400+30:1800+30"]

{[%evp 15,79,44,52,35,79,70,106,91,125,129,126,121,130,96,185,185,214,212,204,188,156,114,236,218,314,322,331,327,424,410,411,416,396,406,490,475,651,638,640,637,634,620,606,594,877,858,989,958,1029,1029,1161,1097,1288,1262,1591,1573,1616,1616,2168,2116,2235,2231,1884,1847,29981,8066]} 1. Nf3 {[%emt 0:00:03]} Nf6 {[%emt 0:00:14]} 2. c4 {[%emt 0:00:07]} g6 {[%emt 0:00:33]} 3. Nc3 {[%emt 0:00:12]} Bg7 {[%emt 0:00:43]} 4. e4 {[%emt 0:00:11]} d6 {[%emt 0:00:05]} 5. d4 {[%emt 0:00:06][%cal Bd2d4,Bd4d5][%mdl 32]} O-O {[%emt 0:00:24]} 6. Be2 {[%emt 0:00:22]} Nc6 {[%emt 0:03:07]} 7. d5 {[%emt 0:03:59]} Nb8 {[%emt 0:06:04]} 8. O-O {[%emt 0:01:46]} Nbd7 {[%emt 0:02:06]} 9. h3 {[%emt 0:19:34] E91: King's Indian: Classical: 6 Be2, unusual replies including 6...c5 and 6...Bg4.} c6 {[%emt 0:07:43]} 10. Be3 {[%emt 0:01:37]} Qa5 {[%emt 0:02:46]} 11. a3 {[%emt 0:03:51] White is better.} cxd5 {[%emt 0:07:57]} 12. cxd5 {[%emt 0:04:02]} a6 {[%emt 0:04:17] [#]} 13. b4 $146 {[%emt 0:02:17]} ({Predecessor:} 13. Nd4 Qd8 14. Rc1 b5 15. Nc6 Qe8 16. b4 Bb7 17. Na5 Qb8 18. f4 Rc8 19. Bd4 {1-0 (37) Maugg,L (2136)-Wachweger,A (1850) Bad Woerishofen 2003}) 13... Qd8 {[%emt 0:00:55]} 14. Rc1 {[%emt 0:00:12]} b5 {[%emt 0:01:09]} (14... Nb6 $16 {was called for.}) 15. Nd4 $18 {[%emt 0:02:12]} Bb7 {[%emt 0:01:43]} 16. a4 {[%emt 0:12:38]} bxa4 {[%emt 0:03:50]} 17. Qxa4 {[%emt 0:00:08]} Nb6 {[%emt 0:01:17]} 18. Qa5 {[%emt 0:05:50] [#] Black must now prevent Nc6. 0x0.0022fbacae4adp-1022s more active pieces. The black rooks are badly placed.} Nc8 {[%emt 0:08:24] A mistake that costs the game.} (18... Nxe4 $16 19. Nxe4 Nxd5) 19. f3 {[%emt 0:09:38]} Nd7 {[%emt 0:02:55]} (19... Qxa5 {was worth a try.} 20. bxa5 Na7) 20. Na4 {[%emt 0:03:40]} Qxa5 {[%emt 0:15:16]} 21. bxa5 {[%emt 0:00:02]} Nc5 {[%emt 0:00:13]} 22. Nxc5 {[%emt 0:00:52]} dxc5 {[%emt 0:00:02]} 23. Rxc5 {[%emt 0:00:17]} Nd6 {[%emt 0:00:03]} 24. Rc7 {[%emt 0:10:30]} Rfe8 {[%emt 0:01:22]} 25. Rb1 {[%emt 0:04:08][%cal Bf1b1,Bb1b7,Bb7e7][%mdl 32]} Rac8 {[%emt 0:01:59]} 26. Rcxb7 {[%emt 0:03:20]} Nxb7 {[%emt 0:00:45]} 27. Rxb7 {[%emt 0:00:02]} Rc3 {[%emt 0:02:41]} 28. Kf2 {[%emt 0:01:52]} Bf6 {[%emt 0:04:50]} 29. Nc6 {[%emt 0:03:59]} Rc2 {[%emt 0:00:53]} 30. e5 {[%emt 0:02:06]} Bg7 {[%emt 0:01:46]} 31. Rxe7 {[%emt 0:01:34]} Rc8 {[%emt 0:01:16]} 32. Rb7 {[%emt 0:00:44]} Kf8 {[%emt 0:01:02]} 33. f4 {[%emt 0:00:19]} Bh6 {[%emt 0:02:07]} 34. Kf3 {[%emt 0:00:19]} Rc3 {[%emt 0:01:37]} 35. Bxa6 {[%emt 0:00:27]} g5 {[%emt 0:01:19]} 36. g3 {[%emt 0:00:13][%cal Bg2g3,Bg3f4][%mdl 32]} gxf4 {[%emt 0:00:59]} 37. gxf4 {[%emt 0:00:04]} Ra8 {[%emt 0:01:39]} 38. Rb8+ {[%emt 0:00:35]} Rxb8 {[%emt 0:00:04]} 39. Nxb8 {[%emt 0:00:04]} Ke8 {[%emt 0:00:24]} 40. Bb5+ {[%emt 0:00:45] Weighted Error Value: White=0.09 (flawless) /Black=0.51} 1-0

[Event "GER-chT States Women 2022"]
[Site "Braunfels"]
[Date "2022.06.19"]
[Round "5.7"]
[White "Kosovska, Olena"]
[Black "Cordes, Jule"]
[Result "1/2-1/2"]
[ECO "C05"]
[WhiteElo "1827"]
[BlackElo "1759"]
[Annotator "NA RC"]
[PlyCount "68"]
[EventDate "2022.06.15"]
[EventType "swiss"]
[EventCountry "GER"]
[SourceTitle "playchess.com"]
[Source "ChessBase"]
[SourceQuality "1"]
[TimeControl "40/5400+30:1800+30"]

1. e4 {[%emt 0:00:02]} e6 {[%emt 0:00:10]} 2. d4 {[%emt 0:00:06]} d5 {[%emt 0:00:08]} 3. Nd2 {[%emt 0:00:11]} Nf6 {[%emt 0:00:08]} 4. e5 {[%emt 0:00:14]} Nfd7 {[%emt 0:00:07]} 5. f4 {[%emt 0:00:48]} c5 {[%emt 0:00:12]} 6. Ngf3 {[%emt 0:00:18]} Nc6 {[%emt 0:00:18]} 7. c3 {[%emt 0:00:44]} Qb6 {[%emt 0:01:30]} 8. Nb3 {[%emt 0:03:56]} cxd4 {[%emt 0:03:19]} 9. Nbxd4 {[%emt 0:01:47]} Nxd4 {[%emt 0:01:34]} 10. Nxd4 {[%emt 0:00:10]} Bc5 {[%emt 0:01:08]} 11. Be2 {[%emt 0:00:45]} O-O {[%emt 0:00:52]} 12. O-O {[%emt 0:01:26]} f6 {[%emt 0:04:33]} 13. exf6 {[%emt 0:04:08]} Nxf6 {[%emt 0:01:06]} 14. Kh1 {[%emt 0:06:05]} Bd7 {[%emt 0:02:43]} 15. a4 {[%emt 0:03:13]} a5 {[%emt 0:08:42]} 16. Bf3 {[%emt 0:08:13]} Rae8 {[%emt 0:02:20]} 17. Re1 {[%emt 0:03:17]} Re7 {[%emt 0:06:12]} 18. Nb3 {[%emt 0:01:41]} Bd6 {[%emt 0:09:54]} 19. Be3 {[%emt 0:04:36]} Qc7 {[%emt 0:02:27]} 20. g3 {[%emt 0:01:01]} Be8 {[%emt 0:02:04]} 21. Nd4 {[%emt 0:02:09]} Bc5 {[%emt 0:05:37]} 22. Bg1 {[%emt 0:06:16]} Bxd4 {[%emt 0:03:43]} 23. Bxd4 {[%emt 0:02:33]} Bg6 {[%emt 0:01:43]} 24. b4 {[%emt 0:02:06]} Rfe8 {[%emt 0:04:10]} 25. Kg1 {[%emt 0:08:10]} Be4 {[%emt 0:04:37]} 26. Be2 {[%emt 0:17:09]} Nd7 {[%emt 0:05:49]} 27. Qb3 {[%emt 0:08:05]} b6 {[%emt 0:02:36]} 28. Bb5 {[%emt 0:04:22]} Rc8 {[%emt 0:04:21]} 29. Rac1 {[%emt 0:02:38]} Nb8 {[%emt 0:07:57]} 30. Be5 {[%emt 0:02:40]} Qb7 {[%emt 0:01:07]} 31. c4 {[%emt 0:05:29]} axb4 {[%emt 0:06:06]} 32. Bd6 {[%emt 0:01:37]} Rf7 {[%emt 0:01:46]} 33. Qxb4 {[%emt 0:00:22]} Nc6 {[%emt 0:01:31]} 34. Qd2 {[%emt 0:00:08]} Rd7 {[%emt 0:04:26]} 1/2-1/2

[Event "GER-chT States Women 2022"]
[Site "Braunfels"]
[Date "2022.06.19"]
[Round "5.8"]
[White "Sereda, Yaroslava"]
[Black "Gottschall, Ina"]
[Result "1-0"]
[ECO "B06"]
[WhiteElo "1698"]
[BlackElo "1612"]
[Annotator "NA RC"]
[PlyCount "51"]
[EventDate "2022.06.15"]
[EventType "swiss"]
[EventCountry "GER"]
[SourceTitle "playchess.com"]
[Source "ChessBase"]
[SourceQuality "1"]
[TimeControl "40/5400+30:1800+30"]

1. e4 {[%emt 0:00:05]} g6 {[%emt 0:00:06]} 2. d4 {[%emt 0:00:13]} Bg7 {[%emt 0:00:04]} 3. Nc3 {[%emt 0:02:46]} d6 {[%emt 0:00:13]} 4. Bc4 {[%emt 0:01:25]} Nf6 {[%emt 0:02:12]} 5. f4 {[%emt 0:05:43]} c5 {[%emt 0:08:14]} 6. dxc5 {[%emt 0:02:59]} Qa5 {[%emt 0:05:51]} 7. e5 {[%emt 0:11:50]} dxe5 {[%emt 0:00:35]} 8. fxe5 {[%emt 0:00:44]} Ne4 {[%emt 0:00:25]} 9. Qd5 {[%emt 0:27:35]} Nxc3 {[%emt 0:17:40]} 10. Qxf7+ {[%emt 0:00:59]} Kd7 {[%emt 0:02:27]} 11. e6+ {[%emt 0:15:06]} Kc6 {[%emt 0:04:36]} 12. Qxg7 {[%emt 0:02:25]} Ne4+ {[%emt 0:00:38]} 13. c3 {[%emt 0:00:49]} Qxc5 {[%emt 0:09:29]} 14. Qxh8 {[%emt 0:04:09]} Qf2+ {[%emt 0:00:31]} 15. Kd1 {[%emt 0:00:13]} Bxe6 {[%emt 0:06:23]} 16. Bxe6 {[%emt 0:10:35]} Qf1+ {[%emt 0:00:45]} 17. Kc2 {[%emt 0:00:14]} Qf2+ {[%emt 0:00:22]} 18. Kb1 {[%emt 0:03:47]} Nd2+ {[%emt 0:14:10]} 19. Bxd2 {[%emt 0:01:31]} Qxd2 {[%emt 0:00:10]} 20. Qd4 {[%emt 0:02:11]} Qe1+ {[%emt 0:00:13]} 21. Kc2 {[%emt 0:00:08]} Qxe6 {[%emt 0:01:24]} 22. Rd1 {[%emt 0:00:53]} Qf5+ {[%emt 0:02:02]} 23. Qd3 {[%emt 0:00:14]} Qg5 {[%emt 0:06:09]} 24. Rd2 {[%emt 0:00:26]} Na6 {[%emt 0:03:40]} 25. Nf3 {[%emt 0:00:52]} Qc5 {[%emt 0:05:05]} 26. Qe4+ {[%emt 0:00:49]} 1-0

[Event "GER-chT States Women 2022"]
[Site "Braunfels"]
[Date "2022.06.19"]
[Round "5.9"]
[White "Doluhanova, Evgeniya"]
[Black "Bluebaum, Johanna"]
[Result "1-0"]
[ECO "C00"]
[WhiteElo "2270"]
[BlackElo "2049"]
[Annotator "TA"]
[PlyCount "129"]
[EventDate "2022.06.15"]
[EventType "swiss"]
[EventCountry "GER"]
[SourceTitle "playchess.com"]
[Source "ChessBase"]
[SourceQuality "1"]
[TimeControl "40/5400+30:1800+30"]

{[%evp 9,129,0,-2,-4,0,-27,-15,-56,47,42,45,42,44,40,49,37,38,-27,-4,-4,43,16,90,15,23,8,17,23,85,79,76,67,128,121,116,100,135,64,68,0,79,73,81,73,107,60,66,56,56,48,83,54,55,54,131,95,81,82,89,105,83,89,306,306,314,284,317,272,449,454,405,299,289,247,314,320,479,450,694,675,806,562,668,660,645,608,621,566,860,672,911,904,911,817,877,889,878,887,887,887,880,879,878,878,877,872,847,795,872,811,729,601,990,805,1839,1837,1799,1731,1570,1019,5708,4901]} 1. e4 {[%emt 0:01:13]} e6 {[%emt 0:03:38]} 2. d4 {[%emt 0:09:14]} d5 {[%emt 0:00:19]} 3. Bd3 {[%emt 0:00:05][%cal Bf1d3,Bd3e4,Be4f3,Bf3e2][%mdl 32]} dxe4 {[%emt 0:00:57]} 4. Bxe4 {[%emt 0:00:04]} Nf6 {[%emt 0:00:08]} 5. Bf3 {[%emt 0:00:03]} Nbd7 {[%emt 0:03:38]} 6. Ne2 {[%emt 0:01:16] C01: French: Exchange Variation.} Bd6 {[%emt 0:03:42] 6...Bd6 is better than 6...e5.} 7. Nd2 {[%emt 0:03:29]} e5 {[%emt 0:08:49] [#]} 8. Ng3 $146 {[%emt 0:13:49] The position is equal.} ({Predecessor:} 8. O-O O-O 9. c3 Re8 10. Ng3 exd4 11. cxd4 Nb6 12. Nde4 Nxe4 13. Nxe4 Bf8 14. Bg5 {½-½ (24) Janaszak,D (2334)-Harvey,M (2455) Chess.com INT 2022}) 8... O-O {[%emt 0:11:32]} (8... exd4 $15 9. O-O O-O) 9. Nc4 $14 {[%emt 0:05:05]} e4 {[%emt 0:08:08]} 10. Be2 {[%emt 0:00:20]} ({Wrong is} 10. Nxe4 $2 Nxe4 11. Bxe4 Re8 $19) 10... Re8 {[%emt 0:06:40]} 11. Nxd6 {[%emt 0:10:25]} cxd6 {[%emt 0:00:07]} 12. Bf4 {[%emt 0:00:09]} Nf8 {[%emt 0:03:02]} 13. h4 {[%emt 0:04:44]} (13. O-O $14) 13... Ne6 {[%emt 0:05:59]} 14. Be3 {[%emt 0:00:35]} Qa5+ {[%emt 0:09:26]} (14... Nd5 $11) 15. c3 {[%emt 0:01:48][%cal Bc2c3,Bc3c4,Bc4c5][%mdl 32]} Nd8 {[%emt 0:05:48]} (15... d5 $11) 16. b4 {[%emt 0:09:42]} (16. O-O $16) 16... Qc7 $11 {[%emt 0:01:22]} 17. c4 {[%emt 0:01:35]} d5 {[%emt 0:00:46]} 18. c5 {[%emt 0:00:54]} Be6 {[%emt 0:05:27]} (18... h6 $11) 19. Bg5 {[%emt 0:02:25]} Nd7 {[%emt 0:02:04]} 20. Qd2 $36 {[%emt 0:00:11][%mdl 2048] Black is under pressure.} f5 {[%emt 0:02:02]} ({Better is} 20... Nf8 $14) 21. Bf4 $16 {[%emt 0:02:45]} Qc8 {[%emt 0:00:05]} 22. Rc1 {[%emt 0:02:02][%cal Ba1c1,Bc1c3,Bc3g3][%mdl 32]} Nf6 {[%emt 0:03:49]} 23. Be5 {[%emt 0:02:53]} (23. b5 $16) 23... Nd7 $1 $14 {[%emt 0:03:29]} 24. Bf4 {[%emt 0:05:44] White is much more active. The black rooks are badly placed.} ({White should play} 24. Bd6 $1 $14) 24... a6 {[%emt 0:00:13]} (24... Nf6 $1 $11 {keeps the balance.}) 25. Rc3 $16 {[%emt 0:00:57]} Nc6 {[%emt 0:00:50]} 26. a3 {[%emt 0:00:17]} Nf6 {[%emt 0:01:15]} 27. Bd6 {[%emt 0:05:10]} (27. Nh5 $16) 27... Qd7 {[%emt 0:00:38]} 28. Bd1 {[%emt 0:01:28]} Qf7 {[%emt 0:00:45]} 29. Ne2 {[%emt 0:00:40]} Ng4 {[%emt 0:00:53]} 30. Rg3 {[%emt 0:01:39]} Qf6 {[%emt 0:02:09]} 31. Ba4 {[%emt 0:02:10]} Rad8 {[%emt 0:01:56]} (31... Bf7 $14) 32. Bxc6 {[%emt 0:00:41]} bxc6 {[%emt 0:00:05]} 33. Qf4 {[%emt 0:00:35] Hoping for f3.} Bc8 {[%emt 0:02:38][%cal Oa6a5] [#]} 34. f3 $1 {[%emt 0:05:33]} exf3 {[%emt 0:01:00]} 35. gxf3 {[%emt 0:00:05]} Rxd6 $2 {[%emt 0:02:24] This costs Black the game.} 36. cxd6 $18 {[%emt 0:03:13]} Qe6 {[%emt 0:00:44][%csl Ge8][%cal Re6e2] [#]} 37. O-O $1 {[%emt 0:01:00][%cal Bh1f1,Bf1c1,Bc1c3,Bc3d3,Bd3d2][%mdl 32]} Nf6 {[%emt 0:01:13]} 38. Rg2 {[%emt 0:02:13] And now Qg5 would win.} Qe3+ $2 {[%emt 0:00:41]} (38... Nh5 39. Qg5 Qe3+ 40. Kh2 Qxg5 41. hxg5 Rd8) 39. Qxe3 {[%emt 0:01:16]} Rxe3 {[%emt 0:00:06]} 40. Rc1 {[%emt 0:00:14]} Bd7 {[%emt 0:00:37]} 41. Rc3 {[%emt 0:30:15]} Re6 {[%emt 0:01:26]} 42. Nf4 {[%emt 0:00:00] Prevents Nh5.} Re1+ {[%emt 0:03:39]} (42... Rxd6 $142 43. Re3 Kf8) 43. Kf2 {[%emt 0:00:00] White is clearly winning.} Rd1 {[%emt 0:03:19]} (43... Re8 $142 44. Rg1 Kf8) 44. Rd3 {[%emt 0:00:00]} Rh1 {[%emt 0:01:16]} 45. h5 {[%emt 0:00:00] Re3 is the strong threat.} Rh4 {[%emt 0:07:48]} 46. Kg3 {[%emt 0:00:00]} Nxh5+ {[%emt 0:03:06]} 47. Kxh4 {[%emt 0:00:00]} Nxf4 48. Rdd2 Nxg2+ {[%emt 0:03:05]} 49. Rxg2 {[%emt 0:00:00][%mdl 4096] Endgame Threatens to win with Re2. KR-KB} Kf7 {[%emt 0:01:25]} 50. Re2 {[%emt 0:00:00] White threatens Re7+ and mate.} Be6 {[%emt 0:00:13]} 51. a4 {[%emt 0:00:00]} h6 {[%emt 0:01:40]} 52. f4 {[%emt 0:00:00]} Kf6 {[%emt 0:00:37]} 53. Kg3 {[%emt 0:00:00]} Kf7 {[%emt 0:01:47]} 54. Re1 {[%emt 0:00:00]} Kf6 {[%emt 0:00:42]} 55. Kf3 {[%emt 0:00:00]} Kf7 {[%emt 0:00:23]} 56. Rg1 {[%emt 0:00:00]} Bd7 {[%emt 0:00:29]} 57. Ke3 {[%emt 0:00:00]} Kf6 {[%emt 0:00:14]} 58. Rg2 {[%emt 0:00:00]} Be8 {[%emt 0:00:55]} 59. Kd3 {[%emt 0:00:00]} Bd7 {[%emt 0:00:13]} 60. Kc3 {[%emt 0:00:00]} g5 {[%emt 0:00:27]} 61. Rh2 {[%emt 0:00:00]} g4 {[%emt 0:04:12]} 62. Rxh6+ {[%emt 0:00:00]} Kg7 {[%emt 0:00:35]} 63. Rh1 {[%emt 0:00:00]} Be6 {[%emt 0:00:21]} 64. Kd2 {[%emt 0:00:00]} Kf7 {[%emt 0:01:36]} 65. Rh7+ {[%emt 0:00:00] Weighted Error Value: White=0.27 (precise) /Black=0.44} 1-0

[Event "GER-chT States Women 2022"]
[Site "Braunfels"]
[Date "2022.06.19"]
[Round "5.10"]
[White "Barpiyeva, Gulsana"]
[Black "Jussupow, Nadia"]
[Result "1/2-1/2"]
[ECO "A40"]
[WhiteElo "2016"]
[BlackElo "2146"]
[Annotator "NA RC"]
[PlyCount "25"]
[EventDate "2022.06.15"]
[EventType "swiss"]
[EventCountry "GER"]
[SourceTitle "playchess.com"]
[Source "ChessBase"]
[SourceQuality "1"]
[TimeControl "40/5400+30:1800+30"]

1. d4 {[%emt 0:00:05]} e6 {[%emt 0:01:06]} 2. c4 {[%emt 0:00:14]} b6 {[%emt 0:00:52]} 3. Nf3 {[%emt 0:00:42]} Bb7 {[%emt 0:00:11]} 4. g3 {[%emt 0:01:57]} Bb4+ {[%emt 0:01:27]} 5. Bd2 {[%emt 0:01:02]} Qe7 {[%emt 0:01:34]} 6. Bg2 {[%emt 0:00:44]} Nf6 {[%emt 0:02:18]} 7. a3 {[%emt 0:01:22]} Bxd2+ {[%emt 0:00:24]} 8. Nbxd2 {[%emt 0:00:03]} O-O {[%emt 0:04:22]} 9. O-O {[%emt 0:02:21]} d6 {[%emt 0:10:03]} 10. Qc2 {[%emt 0:04:06]} Nbd7 {[%emt 0:00:05]} 11. e4 {[%emt 0:03:28]} e5 {[%emt 0:00:12]} 12. d5 {[%emt 0:00:40]} Nh5 {[%emt 0:08:07]} 13. b4 {[%emt 0:04:04]} 1/2-1/2

[Event "GER-chT States Women 2022"]
[Site "Braunfels"]
[Date "2022.06.19"]
[Round "5.11"]
[White "Kostak, Tatiana"]
[Black "Buchholz, Maja"]
[Result "1-0"]
[ECO "C00"]
[WhiteElo "2102"]
[BlackElo "1945"]
[Annotator "NA RC"]
[PlyCount "59"]
[EventDate "2022.06.15"]
[EventType "swiss"]
[EventCountry "GER"]
[SourceTitle "playchess.com"]
[Source "ChessBase"]
[SourceQuality "1"]
[TimeControl "40/5400+30:1800+30"]

1. e4 {[%emt 0:00:12]} e6 {[%emt 0:00:05]} 2. Nf3 {[%emt 0:00:16]} d5 {[%emt 0:00:06]} 3. e5 {[%emt 0:00:28]} c5 {[%emt 0:00:07]} 4. b4 {[%emt 0:00:10]} cxb4 {[%emt 0:00:08]} 5. d4 {[%emt 0:00:11]} Bd7 {[%emt 0:00:19]} 6. a3 {[%emt 0:00:09]} Nc6 {[%emt 0:00:07]} 7. axb4 {[%emt 0:00:08]} Bxb4+ {[%emt 0:00:07]} 8. c3 {[%emt 0:00:05]} Be7 {[%emt 0:00:06]} 9. Bd3 {[%emt 0:00:48]} Rc8 {[%emt 0:00:23]} 10. h4 {[%emt 0:03:11]} a6 {[%emt 0:03:05]} 11. Rh3 {[%emt 0:02:12]} Na7 {[%emt 0:05:35]} 12. Ng5 {[%emt 0:02:06]} f5 {[%emt 0:06:44]} 13. g4 {[%emt 0:07:54]} Nh6 {[%emt 0:03:28]} 14. gxf5 {[%emt 0:10:13]} Nxf5 {[%emt 0:00:50]} 15. Bxf5 {[%emt 0:00:27]} exf5 {[%emt 0:00:16]} 16. e6 {[%emt 0:00:07]} Bb5 {[%emt 0:03:36]} 17. Nf7 {[%emt 0:00:13]} Qb6 {[%emt 0:00:36]} 18. Nxh8 {[%emt 0:00:37]} Qxe6+ {[%emt 0:00:45]} 19. Re3 {[%emt 0:01:10]} Qg8 {[%emt 0:01:54]} 20. Ba3 {[%emt 0:01:24]} Nc6 {[%emt 0:00:28]} 21. Qh5+ {[%emt 0:02:07]} g6 {[%emt 0:00:24]} 22. Qg5 {[%emt 0:00:49]} Rc7 {[%emt 0:00:37]} 23. Bxe7 {[%emt 0:04:51]} Rxe7 {[%emt 0:02:37]} 24. Na3 {[%emt 0:06:31]} Kd7 {[%emt 0:02:34]} 25. Nxb5 {[%emt 0:00:18]} axb5 {[%emt 0:00:04]} 26. Rxe7+ {[%emt 0:00:19]} Nxe7 {[%emt 0:00:12]} 27. Qf6 {[%emt 0:00:15]} Qc8 {[%emt 0:02:44]} 28. Rc1 {[%emt 0:00:44]} b4 {[%emt 0:01:34]} 29. Nf7 {[%emt 0:00:26]} bxc3 {[%emt 0:00:26]} 30. Ne5+ {[%emt 0:00:16]} 1-0

[Event "GER-chT States Women 2022"]
[Site "Braunfels"]
[Date "2022.06.19"]
[Round "5.13"]
[White "Gheng, Simona"]
[Black "Lukas, Anne"]
[Result "0-1"]
[ECO "B27"]
[WhiteElo "1944"]
[BlackElo "2040"]
[Annotator "TA"]
[PlyCount "68"]
[EventDate "2022.06.15"]
[EventType "swiss"]
[EventCountry "GER"]
[SourceTitle "playchess.com"]
[Source "ChessBase"]
[SourceQuality "1"]
[TimeControl "40/5400+30:1800+30"]

{[%evp 13,68,0,18,14,50,49,47,0,-7,-58,-4,-41,-39,-29,-31,-35,-16,-32,-26,-14,-18,-17,-37,-40,43,-36,-37,-55,-20,-192,-193,-239,-237,-357,-313,-446,-145,-139,-74,-623,-652,-612,-634,-575,-277,-245,-199,-189,-183,-189,-183,-191,-201,-199,-184,-29997,-792]} 1. e4 {[%emt 0:00:03]} c5 {[%emt 0:00:07]} 2. Nf3 {[%emt 0:00:15]} g6 {[%emt 0:00:06]} 3. d4 {[%emt 0:00:57]} cxd4 {[%emt 0:00:05]} 4. Nxd4 {[%emt 0:00:15]} Bg7 {[%emt 0:00:05]} 5. Nc3 {[%emt 0:01:33]} Nc6 {[%emt 0:00:05]} 6. Nxc6 {[%emt 0:00:27]} bxc6 {[%emt 0:00:06]} 7. Bc4 {[%emt 0:00:30]} d6 {[%emt 0:19:04]} 8. O-O {[%emt 0:03:34] B34: Sicilian: Accelerated Dragon with 5 Nc3: sidelines.} Nh6 {[%emt 0:05:18]} 9. h3 {[%emt 0:05:22]} O-O {[%emt 0:06:49] [#]} 10. Qf3 $146 {[%emt 0:08:46]} ({White should try} 10. Bf4 $14 Kh8 11. Qd2) ({Predecessor:} 10. Be3 Kh8 11. Bd4 Ng8 12. Bxg7+ Kxg7 13. f4 Rb8 14. Bb3 Ba6 15. Qd4+ Nf6 16. Rfe1 {1-0 (37) Capton,R (1737)-Henry,T (1979) Europe Echecs INT 2020}) 10... Kh8 $11 {[%emt 0:03:23]} 11. Rd1 {[%emt 0:02:59]} (11. Re1 $11) 11... Qc7 {[%emt 0:03:31]} (11... f5 $1 $15) 12. Bg5 {[%emt 0:08:28]} f5 {[%emt 0:05:14]} 13. Qe3 {[%emt 0:08:39]} Nf7 {[%emt 0:01:41]} 14. Bxf7 {[%emt 0:04:45]} Rxf7 {[%emt 0:00:06]} 15. Bh6 {[%emt 0:00:43]} Bxh6 {[%emt 0:07:32]} 16. Qxh6 {[%emt 0:00:15]} f4 {[%emt 0:00:25]} 17. e5 {[%emt 0:10:36]} d5 {[%emt 0:02:37] Against Ne4} 18. Re1 {[%emt 0:02:47]} Be6 {[%emt 0:00:52]} (18... e6 $15) 19. b3 {[%emt 0:03:37]} ({Better is} 19. Ne2 $1 $14) 19... Raf8 $15 {[%emt 0:11:36]} 20. Rad1 {[%emt 0:04:15]} Qc8 {[%emt 0:00:49] Black wants to play ...Rf5.} 21. Qh4 $2 {[%emt 0:06:14] [#]} (21. f3 $11 {and White stays safe.}) 21... g5 $1 $19 {[%emt 0:00:29]} 22. Qh6 {[%emt 0:03:27]} ({Don't blunder} 22. Qxg5 $2 Rg7 23. Qh4 Bxh3 $19) (22. Qh5 $142) 22... f3 {[%emt 0:01:50]} 23. g3 {[%emt 0:02:02]} (23. Rd3 $142) 23... Rg7 {[%emt 0:01:10]} 24. Rd3 {[%emt 0:01:45]} (24. Qh5 $142 Bxh3 25. Rd4) 24... Rg6 $2 {[%emt 0:01:21]} (24... Bxh3 $19 {is more deadly. Threatens to win with ...Rg6.} 25. Ree3 Rg6) 25. Qh5 $17 {[%emt 0:00:18]} g4 {[%emt 0:00:19]} (25... Bxh3 $142 26. Rxf3 Bf5) 26. hxg4 $2 {[%emt 0:01:40][%mdl 8192]} (26. Na4 $17) 26... Bxg4 $19 {[%emt 0:00:26]} 27. Qh4 {[%emt 0:00:18]} Qe6 {[%emt 0:00:09] Hoping for ...Rh6.} 28. Rd4 {[%emt 0:00:53]} Rfg8 {[%emt 0:00:18]} (28... Bh3 $142 {White must now prevent ...Rh6.} 29. Na4 Rh6) 29. Na4 {[%emt 0:01:05]} Rh6 {[%emt 0:00:55]} 30. Nc5 {[%emt 0:00:13]} Qg6 $36 {[%emt 0:06:35][%mdl 2048] Black has strong initiative.} 31. Rxg4 {[%emt 0:03:29]} Rxh4 {[%emt 0:00:06]} 32. Rxg6 {[%emt 0:00:04]} Rxg6 {[%emt 0:00:06]} 33. Re3 {[%emt 0:00:16]} Rh5 {[%emt 0:00:11] ( -> ...Rgh6)} 34. e6 $2 {[%emt 0:01:54] [#]} (34. Rxf3 $19 Rxe5 35. Nd3) 34... d4 {[%emt 0:00:17] Weighted Error Value: White=0.81/Black=0.38} (34... Rgh6 $142 35. Rxf3 Rh1+ 36. Kg2 R6h2#) 0-1